Cogmind - Beta 9.6 @@@ ROGUE MODE // 2020.08.03 @ 20:27:03 Player: Coronach Result: Destroyed by Y-45 Defender with Beam Rifle Performance ------------- Evolutions (1) 500 Regions Visited (2) 400 Robots Destroyed (27) 135 Value Destroyed (436) 436 Prototype IDs (0) 0 Alien Tech Used (0) 0 Bonus (0) 0 TOTAL SCORE: 1471 Bonus ------- None Cogmind --------- Core Integrity 0/400 Matter 169/300 Energy 100/100 System Corruption 0% Temperature Cool (9) Movement Flying (40) Location -9/Materials Parts ------- > --- POWER (1) -------- (None) > --- PROPULSION (3) --- Flight Unit Flight Unit > --- UTILITY (3) ------ Visual Processing Unit Sensor Array Signal Interpreter > --- WEAPON (2) ------- Light Assault Rifle Light Assault Rifle > --- INVENTORY (4) ---- Flight Unit Flight Unit Peak State ------------ > --- POWER ------------ Ion Engine > --- PROPULSION ------- Aluminum Leg Aluminum Leg > --- UTILITY ---------- Structural Scanner Improved Terrain Scanner Seismic Analyzer > --- WEAPON ----------- Light EM Pulse Cannon Shotgun > --- INVENTORY -------- (None) [Rating: 11] Favorites ----------- Power Light Ion Engine Engine Light Ion Engine Propulsion Wheel Leg Aluminum Leg Wheel Wheel Hover Unit Hover Unit Flight Unit Flight Unit Utility Seismic Analyzer Device Improved Terrain Scanner Processor Seismic Analyzer Weapon Assault Rifle Energy Gun Medium Laser Energy Cannon Light EM Pulse Cannon Ballistic Gun Assault Rifle Build | -11 -10 -9 ------- Run | Scr Mat Mat Slots Evolved 2 | . . 2 Power . | . . . Propulsion 1 | . . 1 Utility 1 | . . 1 Weapon . | . . . Parts Attached 32 | 8 4 20 Power 3 | 2 1 . Engine 3 | 2 1 . Core . | . . . Reactor . | . . . Propulsion 9 | 2 2 5 Treads . | . . . Leg 2 | . 2 . Wheel 2 | 2 . . Hover 1 | . . 1 Flight 4 | . . 4 Utility 6 | 2 . 4 Device 3 | 1 . 2 Storage . | . . . Processor 3 | 1 . 2 Hackware . | . . . Protection . | . . . Artifact . | . . . Weapon 14 | 2 1 11 Energy Gun 4 | 1 . 3 Energy Cannon 2 | . . 2 Ballistic Gun 8 | 1 1 6 Ballistic Cannon . | . . . Launcher . | . . . Special Weapon . | . . . Impact Weapon . | . . . Slashing Weapon . | . . . Piercing Weapon . | . . . Special Melee Weapon . | . . . Unidentified Prototypes . | . . . Parts Lost 18 | . 4 14 Power 2 | . 1 1 Propulsion 6 | . 2 4 Utility 2 | . . 2 Weapon 8 | . 1 7 Highest Loss Streak 9 | . 4 9 Average Slot Usage (%) 83 | . 95 68 Engine 8 | . 12 3 Leg 4 | . 2 7 Wheel 12 | . 22 . Hover 1 | . . 2 Flight 4 | . . 10 Device 12 | . 14 11 Processor 14 | . 14 15 Energy Gun 7 | . 11 1 Ballistic Gun 15 | . 16 15 Naked Turns . | . . . Heaviest Build 14 | 8 10 14 Greatest Support 20 | 20 20 20 Greatest Overweight (x) 1 | . 1 1 Average Overweight (x) . | . . . Largest Inventory Capacity 4 | 4 4 4 Average Capacity 4 | 4 4 4 Most Carried 4 | 1 2 4 Average Carried 1 | . 1 1 Final Capacity 4 | 4 4 4 Final Carried 2 | 1 1 2 Class Distribution -------------------- 62% | Mutant 20% | Scavenger-Scout 14% | Scavenger-Mutant 3% | Scavenger-Skirmisher Dominant Class ---------------- Mutant | -10/Materials Scavenger-Scout | -9/Materials Resources | -11 -10 -9 ----------- Run | Scr Mat Mat Matter Collected 544 | 297 120 127 Remotely . | . . . Salvage Created 664 | 113 224 327 Parts 64 | 16 18 30 Haulers Intercepted . | . . . Recyclers Shooed 1 | . . 1 Parts Field Recycled . | . . . Retrieved Matter . | . . . Parts Self-Destructed . | . . . Prevented . | . . . Kills | -11 -10 -9 ------- Run | Scr Mat Mat Combat Hostiles Destroyed 16 | 1 6 9 Guns 16 | 1 6 9 Classes Destroyed 6 | 3 2 1 Worker 3 | 1 . 2 Tunneler 4 | 4 . . Recycler 1 | . . 1 Watcher 3 | . 1 2 Swarmer 9 | . 2 7 Grunt 7 | 1 4 2 Best Kill Streak 5 | 5 4 5 Combat Bots Only 4 | 1 4 4 Max Kills in Single Turn 2 | 1 2 1 Gunslinging 1 | . 1 . Exploded . | . . . Melee . | . . . Uniques/NPCs Destroyed . | . . . Combat | -11 -10 -9 -------- Run | Scr Mat Mat Damage Taken 1674 | 34 434 1206 Core 516 | 12 93 411 Absorbed by Shields . | . . . Core Remaining (%) 76 | 95 58 . Volleys Fired 102 | 12 21 69 Largest 2 | 2 2 2 Hottest 130 | 70 70 130 Shots Fired 171 | 21 42 108 Gun 166 | 21 42 103 Cannon 5 | . . 5 Launcher . | . . . Special . | . . . Kinetic 128 | 9 30 89 Thermal 38 | 12 12 14 Explosive . | . . . Electromagnetic 5 | . . 5 Robot Hit Streak 8 | 8 8 6 Robot Miss Streak 6 | 2 4 6 Penetration Max . | . . . Secondary Targets 3 | . 2 1 Max Gunslinging Chain 1 | . 1 1 Shots Hit Robots 106 | 15 25 66 Core Hits 54 | 7 13 34 Critical Hits 1 | . . 1 Critical Kills 1 | . . 1 Critical Parts Destroyed . | . . . Melee Attacks . | . . . Impact . | . . . Slashing . | . . . Piercing . | . . . Sneak Attacks . | . . . Combat Hostiles . | . . . Follow-up Attacks . | . . . Damage Inflicted 1083 | 184 337 562 Guns 1060 | 184 337 539 Cannons 23 | . . 23 Explosions . | . . . Melee . | . . . Ramming . | . . . Kinetic 745 | 58 237 450 Thermal 315 | 126 100 89 Explosive . | . . . Electromagnetic 23 | . . 23 Impact . | . . . Slashing . | . . . Piercing . | . . . Highest Corruption . | . . . Average Corruption . | . . . Corruption Purged . | . . . Overload Shots . | . . . Overflow Damage . | . . . Projectiles . | . . . Explosions . | . . . Melee . | . . . Knockbacks . | . . . Impact . | . . . Kinetic . | . . . Secondary . | . . . Self-Inflicted Damage . | . . . Shots . | . . . Rammed . | . . . Targets Rammed . | . . . Kicked . | . . . Crushed . | . . . Highest Temperature 258 | 93 150 258 Average Temperature 65 | 45 63 84 Received Heat Transfer 381 | 18 216 147 Siege Activations . | . . . Robots Corrupted . | . . . Combat Hostiles . | . . . Parts Fried . | . . . Impact Corruptions . | . . . Robots Melted . | . . . Combat Hostiles . | . . . Parts Melted 4 | 3 1 . Heat Transferred 776 | 370 296 110 Parts Sabotaged . | . . . Parts Stolen . | . . . Parts Stripped . | . . . Power Chain Reactions . | . . . Missiles Intercepted . | . . . Alert | -11 -10 -9 ------- Run | Scr Mat Mat Peak Influence 194 | 45 125 194 Average Influence 56 | 17 39 87 Maximum Alert Level . | . . . Low Security (%) 100 | 100 100 100 Level 1 . | . . . Level 2 . | . . . Level 3 . | . . . Level 4 . | . . . Level 5 . | . . . High Security . | . . . Max Security . | . . . Squads Dispatched 2 | . 1 1 Investigation . | . . . Extermination . | . . . Reinforcement 2 | . 1 1 Assault . | . . . Garrison . | . . . Intercept . | . . . Construction Impeded . | . . . Haulers Reinforced . | . . . Stealth | -11 -10 -9 --------- Run | Scr Mat Mat Distress Signals 5 | . . 5 Communications Jammed . | . . . Distress Signals . | . . . Times Spotted 36 | 1 9 26 Peak Tracking Total 10 | 1 4 10 Tactical Retreats 5 | . . 5 Traps | -11 -10 -9 ------- Run | Scr Mat Mat Traps Triggered 1 | . 1 . Indirectly . | . . . Trap Hack Attempts . | . . . Triggered . | . . . Disarmed . | . . . Reprogrammed . | . . . Reused . | . . . Traps Extracted . | . . . Installed . | . . . Triggered . | . . . Machines | -11 -10 -9 ---------- Run | Scr Mat Mat Machines Disabled 1 | . . 1 Max in Single Turn 1 | . . 1 Machines Sabotaged . | . . . Garrisons Compromised . | . . . Overloaded Fab Kills . | . . . Fab Network Shutdowns . | . . . Hacking | -11 -10 -9 --------- Run | Scr Mat Mat Machines Accessed 2 | . 1 1 Terminals 1 | . 1 . Fabricators . | . . . Repair Stations . | . . . Recycling Units 1 | . . 1 Scanalyzers . | . . . Garrison Access . | . . . Total Hacks 6 | . 3 3 Successful 3 | . 1 2 Failed 3 | . 2 1 Catastrophic . | . . . Database Lockouts . | . . . Manual . | . . . Terminals 3 | . 3 . Fabricators . | . . . Repair Stations . | . . . Recycling Units 3 | . . 3 Scanalyzers . | . . . Garrison Access . | . . . Terminal Hacks 1 | . 1 . Emergency Access Points 1 | . 1 . Fabricator Hacks . | . . . Repair Station Hacks . | . . . Recycling Unit Hacks 2 | . . 2 Report Inventory 1 | . . 1 Retrieve Components 1 | . . 1 Scanalyzer . | . . . Garrison Access Hacks . | . . . Unauthorized Hacks . | . . . Terminals . | . . . Fabricators . | . . . Repair Stations . | . . . Recycling Units . | . . . Scanalyzers . | . . . Garrison Access . | . . . Data Cores Recovered . | . . . Used . | . . . Hacking Detections 1 | . 1 . Full Trace Events . | . . . Feedback Events . | . . . Feedback Blocked . | . . . Robot Schematics Acquired . | . . . Robots Built . | . . . Matter . | . . . Time . | . . . Total Robot Build Rating . | . . . Part Schematics Acquired . | . . . Parts Built . | . . . Matter . | . . . Time . | . . . Total Part Build Rating . | . . . Parts Repaired . | . . . Time . | . . . Parts Recycled . | . . . Recycled Matter . | . . . Retrieved Matter . | . . . Retrieved Components 10 | . . 10 Parts Scanalyzed . | . . . Part Schematics Acquired . | . . . Parts Damaged . | . . . Bothacking | -11 -10 -9 ------------ Run | Scr Mat Mat Used RIF Installer . | . . . Robots Hacked . | . . . Non-combat . | . . . Combat . | . . . Robot Hacks Applied . | . . . Relay Couplers Released . | . . . Robots Rewired . | . . . Allies Hacked . | . . . Hacks Repelled . | . . . Allies | -11 -10 -9 -------- Run | Scr Mat Mat Total Allies . | . . . Largest Group . | . . . Highest-Rated Group . | . . . Highest-Rated Ally . | . . . Total Orders . | . . . Ally Attacks . | . . . Total Damage . | . . . Kills . | . . . Allies Corrupted . | . . . Allies Melted . | . . . Intel | -11 -10 -9 ------- Run | Scr Mat Mat Robot Analysis Total . | . . . Derelict Logs Recovered . | . . . Drone Launches . | . . . Drone Recoveries . | . . . Exploration | -11 -10 -9 ------------- Run | Scr Mat Mat Turns Passed 956 | 104 470 382 Spaces Moved 445 | 78 172 195 Core 78 | 16 6 56 Treads . | . . . Legs 115 | . 37 78 Wheels 191 | 62 129 . Hover 19 | . . 19 Flight 42 | . . 42 Fastest Speed 34 | 50 80 34 Average Speed 81 | 73 89 78 Slowest Speed 120 | 80 120 120 Overloaded Moves . | . . . Propulsion Burnouts . | . . . Robots Hopped 1 | . . 1 Cave-ins Triggered . | . . . Exploration Rate (%) 17 | 8 27 18 Regions Visited 2 Branch Regions . Pre-discovered Areas . | . . . Known Exits Taken . | . . . Unknown Exits Taken 2 | 1 1 . Scrap Searched . | . . . Spaces Dug . | . . . Terrain Destroyed . | . . . Melee . | . . . Projectile . | . . . AOE . | . . . Actions | -11 -10 -9 --------- Run | Scr Mat Mat Total 871 | 99 445 327 Wait 278 | . 248 30 Move 441 | 77 171 193 Hop 1 | . . 1 Pick Up 10 | 1 1 8 Fast Attach 24 | 8 3 13 Attach 6 | . 1 5 Detach . | . . . Swap 2 | . . 2 Drop 7 | 1 . 6 Fire 102 | 12 21 69 Melee . | . . . Ram . | . . . Kick . | . . . Crush . | . . . Escape Stasis . | . . . Rewire . | . . . Trap . | . . . Miscellaneous . | . . . Route ------- -11/Scrapyard -10/Materials (discovered 2 exits: *Mat / [*Min]) -9/Materials History --------- Turn | Location | Event 2 | -11/Scrapyard | Met Revision 17 52 | -11/Scrapyard | Discovered new exit (range 8) 105 | -11/Scrapyard | Entered Materials 313 | -10/Materials | Build established: Mutant 428 | -10/Materials | Discovered new exit (range 11) 536 | -10/Materials | Lost 4 parts (1p2n1w) 568 | -10/Materials | Discovered new exit (range 6) 575 | -10/Materials | Entered another Materials area 575 | -9/Materials | Evolved 2 slots: Propulsion x1, Utility x1 738 | -9/Materials | Core integrity fell below 50% 766 | -9/Materials | Lost 9 parts (1p3n1u4w) 789 | -9/Materials | Core integrity fell below 20% 955 | -9/Materials | Lost 3 parts (1n2w) 957 | -9/Materials | Destroyed by Y-45 Defender with Beam Rifle Last Messages --------------- 00837_ Acquired Hover Unit. 00874_ W-16 Scout suffers critical hit. 00874_ W-16 Scout destroyed. 00908_ Lgt. Assault Rifle destroyed. 00910_ U-05 Engineer lays Concrete. 00911_ Lgt. Assault Rifle destroyed. 00912_ U-05 Engineer lays Concrete. 00916_ K-01 Serf collects debris. 00924_ Hover Unit destroyed. 00924_ K-01 Serf collects debris. 00924_ G-34 Mercenary destroyed. 00924_ Switching to secondary target: G-34 Mercenary. 00926_ R-06 Scavenger collects Sensor Array. 00927_ G-34 Mercenary destroyed. 00927_ K-01 Serf collects debris. 00932_ R-06 Scavenger destroyed. 00933_ K-01 Serf collects debris. 00940_ K-01 Serf destroyed. 00942_ K-01 Serf collects debris. 00943_ K-01 Serf destroyed. Map ----- +----------------------------------------------------+ | ??????? ???????????????????????????????????????? | | #+????? ???????????????????????????????????????? | | # ##### ???????????????????????????????????????? | | ???????????????????????????????????????? | | ???????????????????????????????????????? | | ????????? T ????????????????????????????? | | ????????? ???????????????????????????? | | ????????? ???????????????????????????? | | ????????# #???????????????????????????? | | ????????# #???????????????????????????? | | ???????## +??????#######??????????????? | | ####+##### #??????# #??????????????? | | # # #??????# #??????????????? | | + """ # #??????# #??????????????? | | ##### # """ # #??????# #??????????????? | | ##### # """ # ######## #??????????????? | | "" ## # + ## =# #?????###### #?? | | "" ## # """ # ## "" =# #??? #?? | | "" ## # """ # x#?# "Y[[##x###### #?? | | "" ## # """ # #?# ""=[+ w #?? | | "" ## # / =### = # #?? | | ## ########### #?# # #?? | | ## ########### #####+### ! | | ## # #^ u | | ##### # #^ ############### ? | | #### # """ # ^ " @#######??#?????????????? | | # """"" # T!!# ? ? ?????????????????? | | + """"" # = =%#?? ??????????????????? | | # """"" # ^% *#?????????#????????????? | | ###+#+## """ # # ?? ?????????????????? | | ## # # % #???????? ?????????????? | | ## """" #######+### [[!!# ?x???????????????????? | | ## """" #?# +% [[ %# ???? ???????????????? | | ## """" #?# # #???x???? ?????????????? | | ## #?# #!%* #?##???????????????????? | | ## ########### Y ##?? ?? ? ????????????? | | ##########???#??###+##### #????? ????????????????? | | ##?##?##????#?#?#? ????? ###? ? ????????????????? | | ?????????#??????# ? ?? #??????##??????????????? | | #?#?????#???#??#?!!?????# ##?????????????????????? | | ??????##????#??????? ???? #?#?#??????????????????? | | #?#?##???#?#?#??#???? ?? ??????????????????????? | | ????##?????#??###? ????#? ???????#??????????????? | | ?????#????#??????????????? ?"????#??????????????? | | ??????#?????#?##???#?????? ??????????????????????? | | ?????????#?#??????????#??? "?"?" ????????????????? | | #?#?????????????#???????#? ""??"?????????????????? | | ?????????#?????????? ????????????????????????????? | | ???#??????????????????#?#????????????????????????? | | ?????????????????????????????????????????????????? | +----------------------------------------------------+ Best States ------------- Heat Dissipation 28 Energy Generation 10 Energy Capacity 250 Matter Stores 300 Matter Capacity 300 Sight Range 18 Robot Scan Range 10 Terrain Scan Range 16 Terrain Scan Density 60 Evasion (%) 62 Item Schematics ----------------- None Robot Schematics ------------------ None Fabricated ------------ Nothing Alien Tech Used ----------------- None Achievements -------------- None Challenges ------------ None Game ------ Seed ZioniteElectronTendrils Manual? 0 Play Time 00:24:51 Cumulative 15.5 hours Start 2020.07.29 @ 22:33:46 End 2020.08.03 @ 20:27:03 Sessions 3 Manual Loads 0 Difficulty Rogue Special Mode None Game No. 4 Rogue 1 Adventurer 0 Explorer 3 Win Type - Total 0 Types 0/0/0/0/0/0/0 Lore% 20 Gallery% 22 Achievement% 19 Wizard Run 0 Options --------- ASCII 0 Keyboard 0 Movement Mouse Keybinds 0 Fullscreen 1 Font 16/Dina Map View 76x50 Tactical HUD 1 Map Filters NONE Filters NONE Steam 1 RUN: ca78772d-1fe0-4735-8c56-080e411517c7